Cogmind - Beta 13 @@@ ROGUE MODE // 2024.04.01 @ 22:23:22 Player: Ulinator001 Result: Destroyed by S-10 Pest with Light Assault Rifle Performance ------------- Evolutions (2) 1000 Regions Visited (5) 1000 Robots Destroyed (39) 195 Value Destroyed (1173) 1173 Prototype IDs (3) 60 Alien Tech Used (0) 0 Bonus (333) 333 TOTAL SCORE: 3761 Bonus ------- High Alert Combat Kills 33 Aligned with FarCom 300 Cogmind --------- Core Integrity 0/550 Matter 277/300 Energy 100/100 System Corruption 4% Temperature Cool (0) Movement Core (50) Location -8/Materials Parts ------- > --- POWER (2) -------- (None) > --- PROPULSION (3) --- (None) > --- UTILITY (4) ------ Hacking Suite > --- WEAPON (2) ------- (None) > --- INVENTORY (5) ---- Compact Wheel ECM Suite Cloak of Protection Assault Cannon Peak State ------------ > --- POWER ------------ Nuclear Core Light Nuclear Core > --- PROPULSION ------- Aluminum Leg Carbon-fiber Leg Carbon-fiber Leg > --- UTILITY ---------- Small Storage Unit Hardened Light Armor Plating Hardened Medium Armor Plating Hacking Suite > --- WEAPON ----------- Assault Cannon Assault Cannon > --- INVENTORY -------- Light Nuclear Core Improved Heat Sink Large Storage Unit Targeting Computer ECM Suite Cloak of Protection Flak Cannon Rocket Launcher [Rating: 30] Favorites ----------- Power Nuclear Core Engine Light Ion Engine Power Core Nuclear Core Propulsion Wheel Leg Carbon-fiber Leg Wheel Wheel Hover Unit Airjet Flight Unit Flight Unit Utility Small Storage Unit Device ECM Suite Storage Small Storage Unit Hackware Hacking Suite Protection Hardened Light Armor Plating Weapon Mining Laser Energy Gun EM Pulse Gun Ballistic Gun High-powered Shotgun Ballistic Cannon Assault Cannon Launcher Rocket Launcher Special Weapon Mining Laser Build | -11 -10 -10 -10 -9 -8 ------- Run | Yrd Mat Min Exi Min Mat Slots Evolved 4 | . . . . . 4 Power 1 | . . . . . 1 Propulsion 1 | . . . . . 1 Utility 2 | . . . . . 2 Weapon . | . . . . . . Parts Attached 54 | 6 1 9 3 2 33 Power 12 | 1 . 1 . 1 9 Engine 5 | 1 . 1 . 1 2 Core 7 | . . . . . 7 Reactor . | . . . . . . Propulsion 17 | 2 . 5 . . 10 Treads . | . . . . . . Leg 5 | . . 2 . . 3 Wheel 9 | 2 . 3 . . 4 Hover 1 | . . . . . 1 Flight 2 | . . . . . 2 Utility 15 | 1 1 2 3 . 8 Device 3 | . . . 1 . 2 Storage 2 | 1 . . 1 . . Processor . | . . . . . . Hackware 1 | . . . . . 1 Protection 9 | . 1 2 1 . 5 Artifact . | . . . . . . Weapon 10 | 2 . 1 . 1 6 Energy Gun 1 | 1 . . . . . Energy Cannon . | . . . . . . Ballistic Gun 3 | 1 . . . . 2 Ballistic Cannon 3 | . . . . . 3 Launcher 2 | . . . . 1 1 Special Weapon 1 | . . 1 . . . Impact Weapon . | . . . . . . Slashing Weapon . | . . . . . . Piercing Weapon . | . . . . . . Special Melee Weapon . | . . . . . . Unidentified Prototypes 1 | . . . 1 . . Parts Lost 31 | . . 7 . . 24 Power 7 | . . 1 . . 6 Propulsion 11 | . . 2 . . 9 Utility 7 | . . 2 . . 5 Weapon 6 | . . 2 . . 4 Highest Loss Streak 8 | . . 6 . . 8 To Critical Strikes 2 | . . . . . 2 Average Slot Usage (%) 86 | . 96 76 84 99 85 Engine 8 | . 14 12 14 14 1 Core 6 | . . . . . 14 Leg 7 | . . 10 . . 12 Wheel 14 | . 28 15 28 28 4 Device 3 | . . . . . 6 Storage 10 | . 14 14 13 14 6 Hackware 2 | . . . . . 4 Protection 13 | . 11 13 14 14 13 Ballistic Gun 2 | . 14 1 . . 3 Ballistic Cannon 4 | . . . . . 8 Launcher 4 | . . . . 13 3 Special Weapon 5 | . . 5 14 14 . Naked Turns . | . . . . . . Heaviest Build 40 | 11 16 16 14 22 40 Greatest Support 40 | 26 26 26 26 26 40 Greatest Overweight (x) 10 | . . 3 . . 10 Average Overweight (x) . | . . . . . . Largest Inventory Capacity 8 | 8 8 8 8 8 8 Average Capacity 7 | 7 8 8 7 8 7 Most Carried 8 | 3 7 8 8 8 8 Average Carried 7 | 1 6 6 7 7 6 Final Capacity 8 | 8 8 8 8 8 5 Final Carried 8 | 3 7 8 8 8 4 Class Distribution -------------------- 56% | Mutant 43% | Scavenger-Mutant Dominant Class ---------------- Mutant | -10/Materials Mutant | -10/Mines Scavenger-Mutant | -10/Exiles Mutant | -9/Mines Mutant | -8/Materials Resources | -11 -10 -10 -10 -9 -8 ----------- Run | Yrd Mat Min Exi Min Mat Matter Collected 1436 | 197 79 94 . 22 1044 Remotely . | . . . . . . Salvage Created 1060 | . 130 53 . . 877 Parts 62 | . 6 4 . . 52 Haulers Intercepted . | . . . . . . Recyclers Shooed 1 | . . . . . 1 Parts Field Recycled . | . . . . . . Retrieved Matter . | . . . . . . Parts Self-Destructed . | . . . . . . Prevented . | . . . . . . Kills | -11 -10 -10 -10 -9 -8 ------- Run | Yrd Mat Min Exi Min Mat Combat Hostiles Destroyed 30 | . 3 4 . . 23 Melee 1 | . . 1 . . . Guns 12 | . 3 3 . . 6 Cannons 16 | . . . . . 16 AOE 1 | . . . . . 1 Classes Destroyed 10 | . 1 2 . . 7 Builder 3 | . . . . . 3 Tunneler 2 | . . . . . 2 Recycler 2 | . . . . . 2 Watcher 2 | . . . . . 2 Swarmer 8 | . . 3 . . 5 Grunt 16 | . 3 . . . 13 Brawler 1 | . . . . . 1 Sentry 3 | . . . . . 3 Demolisher 1 | . . 1 . . . Hunter 1 | . . . . . 1 Best Kill Streak 5 | . 3 3 . . 5 Combat Bots Only 4 | . 3 3 . . 4 Max Kills in Single Turn 2 | . 1 1 . . 2 Gunslinging . | . . . . . . Exploded 1 | . . . . . 1 Melee 1 | . . 1 . . . Uniques/NPCs Destroyed . | . . . . . . Combat | -11 -10 -10 -10 -9 -8 -------- Run | Yrd Mat Min Exi Min Mat Hostile Shots Fired 321 | . 11 24 . . 286 Missed 74 | . 3 3 . . 68 Damage Taken 3943 | . 93 860 . . 2990 Core 775 | . . 219 . . 556 Absorbed by Shields . | . . . . . . Core Remaining (%) 56 | 100 . . . 12 . Volleys Fired 140 | . 6 5 . . 129 Largest 2 | . 2 2 . . 2 Hottest 88 | . 60 60 . . 88 Shots Fired 207 | . 12 9 . . 186 Gun 81 | . 12 9 . . 60 Cannon 125 | . . . . . 125 Launcher 1 | . . . . . 1 Special . | . . . . . . Kinetic 196 | . 6 5 . . 185 Thermal . | . . . . . . Explosive 1 | . . . . . 1 Electromagnetic 10 | . 6 4 . . . Robot Hit Streak 11 | . 4 6 . . 11 Robot Miss Streak 11 | . 2 1 . . 11 Penetration Max . | . . . . . . Secondary Targets . | . . . . . . Shots Hit Robots 141 | . 7 6 . . 128 Core Hits 96 | . 5 10 . . 81 Critical Kills . | . . . . . . Critical Parts Destroyed 1 | . . . . . 1 Critical Strikes 3 | . . . . . 3 Destroy 1 | . . . . . 1 Blast 2 | . . . . . 2 Melee Attacks . | . . . . . . Impact . | . . . . . . Slashing . | . . . . . . Piercing . | . . . . . . Sneak Attacks . | . . . . . . Combat Hostiles . | . . . . . . Follow-up Attacks . | . . . . . . Damage Inflicted 2785 | . 78 71 . . 2636 Guns 771 | . 78 54 . . 639 Cannons 1858 | . . . . . 1858 Explosions 105 | . . . . . 105 Melee . | . . . . . . Ramming 51 | . . 17 . . 34 Kinetic 2542 | . 23 22 . . 2497 Thermal . | . . . . . . Explosive 105 | . . . . . 105 Electromagnetic 87 | . 55 32 . . . Impact . | . . . . . . Slashing . | . . . . . . Piercing . | . . . . . . Highest Corruption 4 | . . . . . 4 Average Corruption 3 | . . . . . 3 Corruption Purged . | . . . . . . Corruption Blocked . | . . . . . . Effects 34 | . . . . . 34 Message Errors 8 | . . . . . 8 Matter Fused 8 | . . . . . 8 Heat Flow Errors 7 | . . . . . 7 Energy Discharges 2 | . . . . . 2 Data Loss (minor) 2 | . . . . . 2 Data Loss (major) 5 | . . . . . 5 Misfires 1 | . . . . . 1 Weapon Failures 1 | . . . . . 1 Overload Shots . | . . . . . . Overflow Damage 12 | . . . . . 12 Projectiles 2 | . . . . . 2 Explosions 10 | . . . . . 10 Melee . | . . . . . . Knockbacks 38 | . . . . . 38 Impact . | . . . . . . Kinetic 34 | . . . . . 34 Secondary 4 | . . . . . 4 Self-Inflicted Damage 45 | . . 5 . . 40 Shots 1 | . . . . . 1 Rammed 17 | . . 7 . . 10 Targets Rammed 25 | . . 11 . . 14 Kicked 8 | . . 4 . . 4 Crushed . | . . . . . . Highest Temperature 332 | . 123 60 . . 332 Average Temperature 66 | . 56 30 . . 68 Received Heat Transfer 1344 | . 48 . . . 1296 Effects 3 | . . . . . 3 Shutdowns 1 | . . . . . 1 Interference 2 | . . . . . 2 Siege Activations . | . . . . . . Robots Corrupted . | . . . . . . Combat Hostiles . | . . . . . . Parts Fried . | . . . . . . Impact Corruptions . | . . . . . . Robots Melted . | . . . . . . Combat Hostiles . | . . . . . . Parts Melted . | . . . . . . Heat Transferred . | . . . . . . Parts Sabotaged . | . . . . . . Parts Stolen . | . . . . . . Parts Stripped . | . . . . . . Power Chain Reactions . | . . . . . . Alert | -11 -10 -10 -10 -9 -8 ------- Run | Yrd Mat Min Exi Min Mat Peak Influence 494 | . 80 131 . . 494 Initial 31 | . . 31 . . . Average 107 | . 17 29 . . 179 Maximum Alert Level 2 | . . . . . 2 Low Security (%) 75 | 100 100 100 . 100 56 Level 1 21 | . . . . . 37 Level 2 3 | . . . . . 6 Level 3 . | . . . . . . Level 4 . | . . . . . . Level 5 . | . . . . . . High Security . | . . . . . . Max Security . | . . . . . . Squads Dispatched 7 | . 3 . . . 4 Investigation 2 | . 1 . . . 1 Extermination . | . . . . . . Reinforcement 5 | . 2 . . . 3 Assault . | . . . . . . Garrison . | . . . . . . Intercept . | . . . . . . Searches Triggered 1 | . . . . . 1 Construction Impeded . | . . . . . . Haulers Reinforced . | . . . . . . Active Scanning Responses . | . . . . . . Cargo Convoy Interrupts . | . . . . . . Stealth | -11 -10 -10 -10 -9 -8 --------- Run | Yrd Mat Min Exi Min Mat Distress Signals 8 | . 1 . . . 7 Communications Jammed . | . . . . . . Distress Signals . | . . . . . . Times Spotted 79 | . 3 9 . . 67 Peak Tracking Total 7 | . 3 3 . . 7 Tactical Retreats 12 | . . 1 . . 11 Traps | -11 -10 -10 -10 -9 -8 ------- Run | Yrd Mat Min Exi Min Mat Traps Triggered 2 | . . . . . 2 Indirectly . | . . . . . . Trap Hack Attempts . | . . . . . . Triggered . | . . . . . . Disarmed . | . . . . . . Reprogrammed . | . . . . . . Reused . | . . . . . . Traps Extracted . | . . . . . . Installed . | . . . . . . Triggered . | . . . . . . Machines | -11 -10 -10 -10 -9 -8 ---------- Run | Yrd Mat Min Exi Min Mat Machines Disabled 1 | . . . . . 1 Max in Single Turn 1 | . . . . . 1 Garrison Access 1 | . . . . . 1 Machines Repaired . | . . . . . . Machines Dismantled . | . . . . . . Machines Sabotaged . | . . . . . . Overloaded Fab Kills . | . . . . . . Hacking | -11 -10 -10 -10 -9 -8 --------- Run | Yrd Mat Min Exi Min Mat Machines Accessed 13 | . 3 . 3 . 7 Terminals 8 | . 3 . . . 5 Fabricators . | . . . . . . Repair Stations 1 | . . . . . 1 Recycling Units . | . . . . . . Scanalyzers . | . . . . . . Garrison Access 1 | . . . . . 1 Total Hacks 54 | . 6 . 26 . 22 Successful 42 | . 4 . 26 . 12 Failed 12 | . 2 . . . 10 Catastrophic . | . . . . . . Database Lockouts . | . . . . . . Manual 2 | . . . 1 . 1 Terminals 23 | . 6 . . . 17 Fabricators . | . . . . . . Repair Stations 3 | . . . . . 3 Recycling Units . | . . . . . . Scanalyzers . | . . . . . . Garrison Access 2 | . . . . . 2 Terminal Hacks 40 | . 4 . 26 . 10 Record 33 | . 1 . 26 . 6 Robot Analysis 2 | . . . . . 2 Prototype ID Bank 1 | . 1 . . . . Alert Level 1 | . 1 . . . . Dispatch Records 1 | . . . . . 1 Maintenance Status 1 | . . . . . 1 Zone Layout 1 | . 1 . . . . Fabricator Hacks . | . . . . . . Repair Station Hacks 1 | . . . . . 1 Scan Component 1 | . . . . . 1 Recycling Unit Hacks . | . . . . . . Scanalyzer . | . . . . . . Garrison Access Hacks 1 | . . . . . 1 Seal Access 1 | . . . . . 1 Unauthorized Hacks . | . . . . . . Terminals . | . . . . . . Fabricators . | . . . . . . Repair Stations . | . . . . . . Recycling Units . | . . . . . . Scanalyzers . | . . . . . . Garrison Access . | . . . . . . Data Cores Recovered . | . . . . . . Used . | . . . . . . Hacking Detections 6 | . 1 . . . 5 Full Trace Events 2 | . 1 . . . 1 Feedback Events . | . . . . . . Feedback Blocked . | . . . . . . Robot Schematics Acquired . | . . . . . . Robots Built . | . . . . . . Authchips . | . . . . . . Time . | . . . . . . Total Robot Build Rating . | . . . . . . Part Schematics Acquired . | . . . . . . Parts Built . | . . . . . . Authchips . | . . . . . . Time . | . . . . . . Total Part Build Rating . | . . . . . . Parts Repaired . | . . . . . . Time . | . . . . . . Parts Recycled . | . . . . . . Recycled Matter . | . . . . . . Retrieved Matter . | . . . . . . Retrieved Components . | . . . . . . Parts Scanalyzed . | . . . . . . Part Schematics Acquired . | . . . . . . Parts Damaged . | . . . . . . Bothacking | -11 -10 -10 -10 -9 -8 ------------ Run | Yrd Mat Min Exi Min Mat Used RIF Installer . | . . . . . . Robots Hacked . | . . . . . . Non-combat . | . . . . . . Combat . | . . . . . . Robot Hacks Applied . | . . . . . . Relay Couplers Released . | . . . . . . Fabnet Peak Effective % . | . . . . . . Robots Rewired . | . . . . . . Allies Hacked . | . . . . . . Hacks Repelled . | . . . . . . Allies | -11 -10 -10 -10 -9 -8 -------- Run | Yrd Mat Min Exi Min Mat Total Allies 3 | . . 3 . . . Largest Group 3 | . . 3 2 . . Highest-Rated Group 76 | . . 76 45 . . Highest-Rated Ally 31 | . . 31 31 . . Total Orders . | . . . . . . Ally Attacks 10 | . . 10 . . . Total Damage 104 | . . 104 . . . Kills 3 | . . 3 . . . Allies Corrupted . | . . . . . . Allies Melted . | . . . . . . Intel | -11 -10 -10 -10 -9 -8 ------- Run | Yrd Mat Min Exi Min Mat Robot Analysis Total 2 | . . . . . 2 Derelict Logs Recovered 3 | . . 2 . 1 . Drone Launches . | . . . . . . Drone Recoveries . | . . . . . . Exploration | -11 -10 -10 -10 -9 -8 ------------- Run | Yrd Mat Min Exi Min Mat Turns Passed 5632 | 54 143 992 895 877 2671 Spaces Moved 3890 | 49 120 902 973 654 1192 Core 79 | 3 . 39 . . 37 Treads . | . . . . . . Legs 976 | . . 294 . . 682 Wheels 2740 | 46 120 569 973 654 378 Hover 40 | . . . . . 40 Flight 55 | . . . . . 55 Fastest Speed 50 | 50 90 90 90 90 50 Average Speed 112 | 86 90 101 90 90 155 Slowest Speed 550 | 90 90 200 90 90 550 Overloaded Moves . | . . . . . . Propulsion Burnouts . | . . . . . . Robots Hopped . | . . . . . . Cave-ins Triggered . | . . . . . . Exploration Rate (%) 57 | 5 17 99 94 79 53 Regions Visited 5 Branch Regions 3 Pre-discovered Areas 1 | . . 1 . . . Known Exits Taken . | . . . . . . Unknown Exits Taken 5 | 1 1 1 1 1 . Scrap Searched 2 | . . 1 . 1 . Spaces Dug . | . . . . . . Terrain Destroyed 29 | . . . . . 29 Melee . | . . . . . . Projectile 23 | . . . . . 23 AOE 6 | . . . . . 6 Terrain Rammed . | . . . . . . Walls Destroyed . | . . . . . . Machines Disabled . | . . . . . . Actions | -11 -10 -10 -10 -9 -8 --------- Run | Yrd Mat Min Exi Min Mat Total 4915 | 57 143 960 992 942 1821 Wait 760 | . 13 23 11 284 429 Move 3885 | 48 119 901 972 653 1192 Hop . | . . . . . . Pick Up 29 | 3 4 8 3 1 10 Fast Attach 30 | 6 1 2 1 2 18 Attach 13 | . . 4 1 . 8 Detach 3 | . . . 1 . 2 Swap 11 | . . 3 1 . 7 Drop 19 | . . 3 2 2 12 Fire 140 | . 6 5 . . 129 Melee . | . . . . . . Ram 17 | . . 7 . . 10 Kick 8 | . . 4 . . 4 Crush . | . . . . . . Escape Stasis . | . . . . . . Rewire . | . . . . . . Trap . | . . . . . . Miscellaneous . | . . . . . . Route ------- -11/Scrapyard -10/Materials -10/Mines (discovered 3 exits: [*Mat x2] / *Exi) -10/Exiles (discovered 2 exits: [*Min x2]) -9/Mines -8/Materials (discovered 1 exit: Fac) History --------- Turn | Location | Event 27 | -11/Scrapyard | Discovered new exit (range 15) 55 | -11/Scrapyard | Entered Materials 65 | -10/Materials | Discovered new exit (range 15) 198 | -10/Materials | Entered Mines 227 | -10/Mines | Assembled infested the area 274 | -10/Mines | Discovered new exit (range 10) 311 | -10/Mines | Build established: Mutant 345 | -10/Mines | Core integrity fell below 50% 372 | -10/Mines | Core integrity fell below 20% 377 | -10/Mines | Lost 6 parts (1p2n1u2w) 464 | -10/Mines | Discovered new exit (range 5) 485 | -10/Mines | Learned location of Zion (-7) 740 | -10/Mines | Found a damaged Exp. Sensor Array with a note attached 742 | -10/Mines | Found Prototype Device 777 | -10/Mines | Learned Materials stockpile data 801 | -10/Mines | Received a Mining Laser from a helpful Derelict 1066 | -10/Mines | Deemed a non-threat by the Exiles lab entrance 1066 | -10/Mines | Discovered new exit (range 5) 1092 | -10/Mines | Build established: Scavenger-Mutant 1190 | -10/Mines | Entered Exiles 1190 | -10/Exiles | Accompanied by 2 allies 1212 | -10/Exiles | Discovered new exit (range 15) 1220 | -10/Exiles | Led the pair of lost Derelicts to a safe place 1251 | -10/Exiles | Met 8R-AWN 1272 | -10/Exiles | Met EX-HEX 1326 | -10/Exiles | Met EX-DEC 1360 | -10/Exiles | Met EX-BIN 1431 | -10/Exiles | Aligned with FarCom system 1432 | -10/Exiles | Given EX-Vault access code 1585 | -10/Exiles | Discovered new exit (range 12) 1692 | -10/Exiles | Visited The Gauntlet 1933 | -10/Exiles | Opened EX-Vault 1938 | -10/Exiles | Found Prototype Device 1976 | -10/Exiles | Warned to stay clear of 0b10 Research branches 2017 | -10/Exiles | Identified Cloak of Protection 2085 | -10/Exiles | Left Exiles lab with Cloak of Protection 2085 | -10/Exiles | Entered Mines 2101 | -9/Mines | Received a Rocket Launcher from a helpful Derelict 2148 | -9/Mines | Learned 2 Materials zone layouts 2328 | -9/Mines | Build established: Mutant 2790 | -9/Mines | A weapon hastily lodged in a ceiling crevice suddenly fell to the ground 2895 | -9/Mines | Discovered new exit (range 5) 2928 | -9/Mines | Found a hidden stash of uninstalled traps 2962 | -9/Mines | Entered Materials 2962 | -8/Materials | Evolved 4 slots: Power x1, Propulsion x1, Utility x2 2963 | -8/Materials | Identified exit to Factory 4044 | -8/Materials | Build established: Scavenger-Mutant 4489 | -8/Materials | Lost 3 parts (2p1n) 4930 | -8/Materials | Build established: Mutant 4962 | -8/Materials | Search patrols dispatched 5034 | -8/Materials | Lost 4 parts (1n2u1w) 5176 | -8/Materials | Core integrity fell below 50% 5534 | -8/Materials | Lost 8 parts (2p2n2u2w) 5607 | -8/Materials | Core integrity fell below 20% 5633 | -8/Materials | Destroyed by S-10 Pest with Light Assault Rifle Last Messages --------------- 4x Patrol 6x Transport 1x Reinforcement R-06 Scavenger collects Lgt. Treads. K-01 Serf cleans the Hadron Collector. O-16 Technician: "IFF HANDSHAKE FAILED. SECURING TERMINAL." ALERT: Hostiles spotted, dispatching reinforcements to Terminal M004. L<0G7SIY6 O,M3VB&ZIMFJ7X S-10 Pest destroyed. Broken Airjet destroyed. Critical hit (Destroy). Nuclear Core destroyed. S-10 Pest destroyed. Acquired 13 matter. Lgt. Assault Rifle destroyed. Slammed into S-10 Pest. K-01 Serf cleans the Processing Tank. Map ----- +----------------------------------------------------+ | # #??# """ # R"#?????# #???????????????? | | # #??# # """??????? #???????????????? | | # #??# [# ???????# ####????????????? | | # ######+####+########## [ #????????????? | | #????????????? | | * #????????????? | | =% #????????????? | | """ """ """ ###/######+### #????????????? | | """ """ """ # = ## #??????????????????? | | """ """ """ # ## #??????????????????? | | """ """ #"" [ # "" #??????????????????? | | #"T ## "Y #??????????????????? | | #"" !!## "" #??????????????????? | | """ """ """ # ! ## #??????????????????? | | """ """ """ ##############??????????????????? | | ?""" """ """ # #?????????????????????? | | ?""" """ """ # #?????????????????????? | | ? # #?????????????????????? | | ? # #?????????????????????? | | ? + #??Y??????????????????? | | ? # #?????????????????????? | | ? ###+#### #?????????????????????? | | ?? g??? ???# #?????????????????????? | | ??? """ ??? ???########+##?????????????????????? | | ???? """ ??? ????# # #??????????????????????? | | ???????" ??? ????# """ #@##### #?????????????? | | ??????? ????????# """ + s #?????????????? | | ??????? ????????# """ ## #?????????????? | | ???????? ????????# s[#? #?????????????? | | ??????????????????#####+## ??????????? | | ????????????????????# %= ?????????? | | ??????????????# """ ??????????? | | ??????????????# ""????????????? | | ??????????????# k""????????????? | | ##### ??????????????# ######### ""????????????? | | ????# ??????????????+ #???????? ""????????????? | | ????# ??????????????# #????????? ?????????????? | | ????# ??????????????# #?????????? ????????????? | | ##### ??????????????# #????????????????????????? | | ??????????????# ?????????????????????????? | | ######??????????????# ?????????????????????????? | | ######??????????????# ??????????????!??????????? | | #??????????????# ?????????????????????????? | | #??????????????# ?????????????????????????? | | """ +??????????????# ?????????????????????????? | | """ #??????????????? ?????????????????????????? | | """ #???????????????????????????????????????????? | | /???????????????????????????????????????????? | | ######???????????????????????????????????????????? | | # ???????????????????????????????????????????? | +----------------------------------------------------+ Best States ------------- Heat Dissipation 45 Energy Generation 23 Energy Capacity 415 Matter Stores 300 Matter Capacity 300 Sight Range 16 Terrain Scan Density 10 ECM Strength 1 Armor Coverage 450 Evasion (%) 55 Offensive Hacking 10 Item Schematics ----------------- None Robot Schematics ------------------ None Fabricated ------------ Nothing Alien Tech Used ----------------- None Achievements -------------- I Survived The Infestation Librarian Oops Tourist Challenges ------------ None Game ------ Seed FlyingArchitectCannon Manual? 0 Play Time 01:46:26 Cumulative 3.9 hours Start 2024.04.01 @ 15:12:29 End 2024.04.01 @ 22:23:22 Sessions 15 Manual Loads 0 Difficulty Rogue Special Mode None Game No. 5 Rogue 5 Adventurer 0 Explorer 0 Win Type - Total 0 Types 0/0/0/0/0/0/0/0/0 Lore% 7 Gallery% 5 Achievement% 5 Wizard Run 0 Options --------- Layout 1 ASCII 0 Keyboard 1 Movement Numpad Keybinds 1 Fullscreen 1 Font 24/Smallcaps Map View 50x35 Zoom Use 0% Tactical HUD 0 Map Filters NONE Filters NONE Steam 1 RUN: 457b096e-ed07-4c42-ad33-6ca85d3818c5